bitfinex/quotes_SOLUSD_20251214
["timestamp","ask_amount","ask_price","bid_price","bid_amount"]
[1765742292295,0.72,130.27,130.26,3.2159426]
[1765742292898,26.86315142,130.29,130.26,3.2159426]
[1765742293102,0.72,130.28,130.26,3.2159426]
[1765742293409,8.39616213,130.28,130.26,2.05925307]
[1765742295582,8.39616213,130.28,130.26,2.05924868]
[1765742298687,8.39616213,130.28,130.26,0.72]
[1765742299084,8.39616213,130.28,130.25,10.45924868]
[1765742299402,8.39616213,130.28,130.26,2.05924868]
[1765742305797,8.39616213,130.28,130.26,2.77924868]
[1765742307386,8.39616213,130.28,130.26,0.72]
[1765742307711,8.39616213,130.28,130.26,2.05924868]
[1765742309011,7.67616213,130.28,130.26,2.05924868]
[1765742309314,7.67616213,130.28,130.26,2.73924868]
[1765742309809,8.35616213,130.28,130.26,2.73924868]
[1765742316722,8.35616213,130.28,130.26,0.68]
[1765742317099,8.35616213,130.28,130.26,2.73924868]
[1765742318109,8.35616213,130.28,130.26,0.68]
[1765742320931,8.35616213,130.28,130.25,8.4]
[1765742320932,7.67616213,130.28,130.25,8.4]
[1765742321232,0.68,130.27,130.25,8.4]
[1765742321827,0.68,130.27,130.25,9.08]
[1765742322736,8.35616213,130.28,130.25,9.08]
[1765742324117,0.68,130.27,130.25,9.08]
[1765742324536,0.68,130.27,130.24,0.68]
[1765742324715,7.67695378,130.26,130.24,0.68]
[1765742325631,7.67695378,130.26,130.24,2.73924868]
[1765742331440,7.67695378,130.26,130.24,2.7398117]
[1765742332238,0.68,130.25,130.23,1e-08]
[1765742333233,0.68,130.25,130.23,0.68000001]
[1765742333418,0.68,130.25,130.23,2.73981171]
[1765742333621,7.67695378,130.26,130.24,0.68]
[1765742333844,8.35695378,130.26,130.24,0.68]
[1765742334348,112.37600312,130.28,130.25,2.0598117]
[1765742334650,112.37600312,130.28,130.27,2.0598117]
[1765742334814,113.05600312,130.28,130.27,2.0598117]
[1765742335018,113.05600312,130.28,130.26,2.7398117]
[1765742335242,113.05600312,130.28,130.25,0.68]
[1765742335446,113.05600312,130.28,130.26,2.0598117]
[1765742335923,113.05600312,130.28,130.26,2.7398117]
[1765742337745,113.05600312,130.28,130.26,0.68]
[1765742338250,112.37600312,130.28,130.26,2.7398117]
[1765742338748,112.37600312,130.28,130.27,0.67]
[1765742342950,19.18569392,130.31,130.27,9.07]
[1765742343138,19.85569392,130.31,130.29,2.0598117]
[1765742343343,7.67492927,130.3,130.29,0.67]
[1765742343536,7.6729641,130.33,130.3,0.67]
[1765742343730,7.6729641,130.33,130.32,2.0598117]
[1765742344052,7.67184612,130.35,130.32,2.0598117]
[1765742344224,7.67184612,130.35,130.33,2.7298117]
[1765742344425,8.34127927,130.36,130.34,2.0598117]
[1765742344628,8.34127927,130.36,130.34,2.7298117]
[1765742344847,7.67127927,130.36,130.35,2.0598117]
[1765742345154,7.67127927,130.36,130.35,2.7298117]
[1765742345353,7.67127927,130.36,130.35,2.0598117]
[1765742347645,7.67127927,130.36,130.34,0.67]
[1765742347850,7.67127927,130.36,130.35,2.0598117]
[1765742348453,0.67,130.36,130.33,0.67]
[1765742348658,0.67,130.35,130.33,2.7298117]
[1765742349335,16.8,130.37,130.34,2.7298117]
[1765742349336,17.47,130.37,130.34,2.7298117]
[1765742349536,16.8,130.37,130.34,2.7298117]
[1765742349737,2.7298117,130.36,130.31,8.4]
[1765742349957,13.0470912,130.34,130.29,2.7298117]
[1765742350131,0.67,130.33,130.32,2.0598117]
[1765742350337,0.67,130.33,130.31,2.0598117]
[1765742350560,7.67341927,130.32,130.28,9.07]
[1765742350758,7.67341927,130.32,130.3,2.0598117]
[1765742350962,8.34341927,130.32,130.3,2.0598117]
[1765742351136,8.34341927,130.32,130.29,0.67]
[1765742352059,7.67306698,130.33,130.3,2.0598117]
[1765742352263,7.67241779,130.34,130.31,2.0598117]
[1765742352500,7.67241779,130.34,130.32,0.67]
[1765742352659,7.67165324,130.35,130.32,0.67]
[1765742352834,8.34165324,130.35,130.32,0.67]
[1765742353549,8.34165324,130.35,130.31,2.0598117]
[1765742353550,0.67,130.34,130.31,0.67]
[1765742353749,0.67,130.34,130.32,0.67]
[1765742354261,0.67,130.34,130.31,0.67]
[1765742355257,8.34274864,130.34,130.31,0.67]
[1765742360981,7.67274864,130.34,130.31,0.67]
[1765742361184,0.67,130.33,130.31,0.67]
[1765742361372,27.52335321,130.34,130.31,0.67]
[1765742362993,0.67,130.33,130.31,0.67]
[1765742363168,19.85060457,130.34,130.31,0.67]
[1765742364088,7.67165324,130.35,130.32,3.21485115]
[1765742364480,7.67165324,130.35,130.33,0.67]
[1765742364677,8.34165324,130.35,130.33,0.67]
[1765742364989,8.34165324,130.35,130.32,3.88485115]
[1765742365407,8.34165324,130.35,130.32,3.21485115]
[1765742365563,8.34165324,130.35,130.33,0.67]
[1765742368092,19.17839867,130.36,130.33,0.67]
[1765742368093,7.67106474,130.36,130.33,0.67]
[1765742368391,7.67106474,130.36,130.33,3.88419599]
[1765742368867,7.67106474,130.36,130.34,3.21419599]
[1765742369068,7.67106474,130.36,130.34,3.87419599]
[1765742369371,13.7570912,130.37,130.34,3.21419599]
[1765742369372,20.71759399,130.37,130.34,3.21419599]
[1765742369584,20.71759399,130.37,130.35,0.66]
[1765742370969,21.42759399,130.37,130.35,0.66]
[1765742371483,21.42759399,130.37,130.34,3.21419599]
[1765742371669,21.42759399,130.37,130.34,3.87419599]
[1765742371988,21.42759399,130.37,130.34,0.66]
[1765742372493,21.42759399,130.37,130.34,3.87419599]
[1765742373092,21.42759399,130.37,130.34,0.66]
[1765742386706,104.9,130.4,130.35,20.71874444]
[1765742386707,0.2,130.4,130.35,20.71874444]
[1765742386897,0.71,130.39,130.36,3.87419599]
[1765742387102,0.71,130.39,130.36,0.66]
[1765742387890,8.37949163,130.39,130.35,11.61419599]
[1765742388095,8.37949163,130.39,130.35,12.27419599]
[1765742388408,0.71,130.38,130.36,0.66]
[1765742388622,0.71,130.38,130.35,9.06]
[1765742388788,0.71,130.38,130.35,8.4]
[1765742390006,7.67047633,130.37,130.35,8.4]
[1765742390391,8.38047633,130.37,130.35,8.4]
[1765742394406,8.38047633,130.37,130.35,9.06]
[1765742394916,8.37999347,130.38,130.36,0.66]
[1765742395117,8.37999347,130.38,130.35,12.27419599]
[1765742396235,8.37999347,130.38,130.35,11.61419599]
[1765742396528,7.66942432,130.39,130.36,0.69]
[1765742396733,7.66942432,130.39,130.36,11.57516971]
[1765742397241,16.26128719,130.37,130.33,0.69]
[1765742397739,0.7,130.36,130.33,0.69]
[1765742398239,3.91419599,130.36,130.32,8.4]
[1765742398432,0.7,130.35,130.32,9.09]
[1765742398740,8.37178364,130.35,130.32,9.09]
[1765742401739,8.372389,130.34,130.32,8.4]
[1765742402144,0.7,130.33,130.32,8.4]
[1765742402324,0.7,130.36,130.33,0.69]
[1765742403045,27.54872659,130.36,130.32,9.09]
[1765742403413,0.7,130.35,130.32,8.4]
[1765742403848,7.67224182,130.34,130.32,8.4]
[1765742404213,0.7,130.33,130.32,8.4]
[1765742404415,7.67224182,130.34,130.32,8.4]
[1765742404755,7.67106474,130.36,130.33,3.21480339]
[1765742405059,0.2,130.4,130.36,8.80994492]
[1765742405224,0.2,130.4,130.39,3.21480339]
[1765742405821,0.2,130.4,130.38,3.21480339]
[1765742406041,0.2,130.4,130.39,3.21480339]
[1765742406422,0.2,130.4,130.39,3.90480339]
[1765742407336,0.2,130.4,130.37,19.97479246]
[1765742407337,8.56874431,130.4,130.37,19.97479246]
[1765742407537,0.2,130.4,130.38,0.69]
[1765742408418,0.2,130.4,130.38,8.35982066]
[1765742408621,0.2,130.4,130.38,11.57462405]
[1765742410056,0.2,130.4,130.39,0.69]
[1765742410363,0.2,130.4,130.39,3.90480339]
[1765742411653,0.2,130.4,130.39,11.57410318]
[1765742413541,0.2,130.4,130.39,20.3840481]
[1765742414355,0.2,130.4,130.39,20.66837124]
[1765742415349,0.2,130.4,130.39,19.50746705]
[1765742418836,0.2,130.41,130.4,9.09426806]
[1765742419030,0.2,130.42,130.4,9.09426806]
[1765742419031,0.2,130.42,130.4,23.05893762]
[1765742419237,0.2,130.42,130.41,26.65483452]
[1765742419436,0.1,130.43,130.42,22.14135926]
[1765742419657,0.1,130.43,130.42,25.65201202]
[1765742420048,0.1,130.48,130.46,8.80994492]
[1765742420368,0.1,130.48,130.47,0.28432314]
[1765742420667,0.1,130.48,130.47,11.83816726]
[1765742420858,0.1,130.48,130.47,19.50276448]
[1765742421030,0.1,130.49,130.48,9.09426806]
[1765742421236,1e-08,130.51,130.5,21.85703612]
[1765742421432,0.1,130.52,130.5,21.85703612]
[1765742421433,0.1,130.52,130.51,11.14816726]
[1765742421674,0.1,130.52,130.51,11.83816726]
[1765742422168,0.1,130.52,130.51,14.90459372]
[1765742422968,0.1,130.52,130.51,22.56684182]
[1765742423442,0.1,130.52,130.51,19.50041536]
[1765742424264,0.1,130.52,130.51,26.92609222]
[1765742424836,0.8,130.52,130.51,8.4]
[1765742425739,0.8,130.52,130.51,10.4538992]
[1765742427467,0.1,130.52,130.51,18.7961473]
[1765742427666,0.1,130.52,130.51,27.60609222]
[1765742428236,0.1,130.52,130.47,10.4538992]
[1765742428237,0.82,130.52,130.47,10.4538992]
[1765742428440,0.82,130.52,130.47,8.4]
[1765742428441,2.8738992,130.52,130.47,8.4]
[1765742428641,10.53572318,130.52,130.47,16.06418873]
[1765742428842,8.38248929,130.51,130.47,16.06418873]
[1765742429058,0.72,130.5,130.47,8.4]
[1765742430242,0.72,130.5,130.47,16.0645666]
[1765742432901,0.72,130.5,130.47,8.4]
[1765742433080,8.38286613,130.5,130.47,8.4]
[1765742433689,0.72,130.49,130.47,8.4]
[1765742434467,2.7738992,130.49,130.47,8.4]
[1765742434685,2.7738992,130.49,130.45,8.4]
[1765742434893,8.3840098,130.48,130.45,8.4]
[1765742435196,29.59793352,130.48,130.45,8.4]
[1765742435380,0.72,130.47,130.45,8.4]
[1765742436193,8.38484775,130.47,130.45,8.4]
[1765742436571,0.72,130.46,130.45,8.4]
[1765742438308,8.38518473,130.46,130.45,8.4]
[1765742438807,8.38518473,130.46,130.43,8.4]
[1765742438976,0.72,130.45,130.43,8.4]
[1765742439865,8.38518473,130.46,130.43,10.4538992]
[1765742440096,8.38518473,130.46,130.43,11.1338992]
[1765742440302,8.38518473,130.46,130.43,11.13335278]
[1765742440513,8.38518473,130.46,130.43,9.08]
[1765742441298,7.66459722,130.47,130.43,8.4]
[1765742441483,0.72,130.45,130.43,8.4]
[1765742442901,0.72,130.46,130.43,9.08]
[1765742443305,0.72,130.46,130.43,8.4]
[1765742443476,8.3856387,130.46,130.43,8.4]
[1765742443996,0.72,130.45,130.43,8.4]
[1765742444194,2.77335278,130.45,130.41,8.4]
[1765742444576,0.72,130.44,130.41,8.4]
[1765742445509,8.38683787,130.44,130.41,8.4]
[1765742445880,0.72,130.43,130.41,8.4]
[1765742446996,7.66683787,130.44,130.41,9.08]
[1765742447193,8.38683787,130.44,130.41,9.08]
[1765742448183,7.66577232,130.45,130.41,8.4]
[1765742448510,0.72,130.43,130.41,8.4]
[1765742450205,8.3870193,130.43,130.41,8.4]
[1765742456113,0.72,130.42,130.41,8.4]
[1765742456316,0.72,130.42,130.38,10.44313396]
[1765742456495,8.38800409,130.42,130.39,8.4]
[1765742457017,0.72,130.41,130.39,8.4]
[1765742457189,8.38720402,130.43,130.4,0.72]
[1765742457384,7.66658374,130.44,130.4,2.77335278]
[1765742457637,0.72,130.43,130.39,11.17335278]
[1765742458315,0.72,130.43,130.39,9.12]
[1765742458516,0.72,130.43,130.4,0.72]
[1765742459596,8.38711168,130.43,130.4,0.72]
[1765742460517,8.38711168,130.43,130.4,8.38867836]
[1765742462218,21.21858676,130.45,130.4,0.72]
[1765742462219,26.83226004,130.44,130.4,0.72]
[1765742462396,0.72,130.42,130.39,8.4]
[1765742462596,2.77335278,130.42,130.38,0.72]
[1765742462902,2.77335278,130.42,130.39,8.4]
[1765742463122,0.72,130.41,130.39,8.4]
[1765742464016,7.66871165,130.4,130.39,8.4]
[1765742464389,8.38871165,130.4,130.39,8.4]
[1765742465719,8.38871165,130.4,130.37,9.12]
[1765742466320,7.66871165,130.4,130.37,11.17335278]
[1765742466499,7.6683287,130.41,130.38,0.72]
[1765742466705,7.6683287,130.41,130.38,2.77335278]
[1765742467228,7.6683287,130.41,130.39,0.72]
[1765742467398,7.6683287,130.41,130.39,0.62]
[1765742467713,0.72,130.4,130.37,18.12374145]
[1765742468322,0.72,130.41,130.37,18.12374145]
[1765742468622,8.38852837,130.41,130.37,18.12374145]
[1765742468802,8.38852837,130.41,130.37,8.4]
[1765742469009,0.72,130.4,130.37,8.4]
[1765742470716,7.66929979,130.39,130.37,8.4]
[1765742471231,0.72,130.38,130.37,8.4]
[1765742473929,0.72,130.38,130.35,19.9832977]
[1765742475332,8.39001902,130.38,130.35,8.4]
[1765742475510,8.39001902,130.38,130.35,9.12]
[1765742477140,7.66929979,130.39,130.35,9.12]
[1765742477338,0.72,130.38,130.35,9.12]
[1765742477514,0.72,130.38,130.35,8.4]
[1765742478227,0.72,130.38,130.35,9.12]
[1765742478540,3.21276926,130.36,130.31,8.39348456]
[1765742478728,3.21276926,130.36,130.31,9.12]
[1765742478934,3.93276926,130.35,130.31,9.12]
[1765742479441,8.39224182,130.34,130.31,9.12]
[1765742479921,0.72,130.33,130.31,9.12]
[1765742480441,3.93276926,130.33,130.3,8.4]
[1765742480739,0.72,130.33,130.3,8.4]
[1765742480940,0.72,130.32,130.3,8.4]
[1765742481646,8.39356375,130.32,130.3,8.4]
[1765742481840,0.72,130.32,130.3,9.12]
[1765742482135,8.3930224,130.33,130.3,9.12]
[1765742482344,7.6730224,130.33,130.31,0.72]
[1765742484632,8.3930224,130.33,130.3,9.12]
[1765742484947,8.3930224,130.33,130.3,8.4]
[1765742485133,8.3930224,130.33,130.31,0.72]
[1765742485551,8.3930224,130.33,130.3,8.4]
[1765742485845,8.3930224,130.33,130.3,9.12]
[1765742486450,0.72,130.33,130.3,16.79458619]
[1765742486655,8.39297585,130.33,130.3,9.12]
[1765742490948,0.7,130.32,130.3,8.4]
[1765742492262,0.7,130.32,130.28,19.69834173]
[1765742492461,11.58648649,130.32,130.28,8.4]
[1765742492849,3.91276926,130.31,130.28,8.4]
[1765742493351,0.7,130.3,130.28,8.4]
[1765742493556,3.91276926,130.3,130.25,0.2]
[1765742493865,26.85726541,130.32,130.25,0.2]
[1765742493866,3.21276926,130.28,130.25,0.2]
[1765742494039,13.7470912,130.29,130.25,0.2]
[1765742494240,3.21276926,130.27,130.25,0.2]
[1765742494456,10.88962659,130.27,130.25,0.2]
[1765742494643,11.58962659,130.27,130.25,0.2]
[1765742494854,8.37685733,130.27,130.25,0.2]
[1765742495639,7.67685733,130.27,130.25,0.9]
[1765742495848,8.37685733,130.27,130.25,0.9]
[1765742496064,8.37685733,130.27,130.25,0.2]
[1765742497870,8.37685733,130.27,130.25,3.41276926]
[1765742498045,8.37599848,130.28,130.25,4.11276926]
[1765742498366,7.67599848,130.28,130.26,0.7]
[1765742498537,8.37599848,130.28,130.26,0.7]
[1765742499171,8.37599848,130.28,130.25,4.11276926]
[1765742500153,0.7,130.27,130.25,4.11276926]
[1765742500355,0.7,130.27,130.25,3.41276926]
[1765742501250,8.37670757,130.27,130.25,0.2]
[1765742501459,7.6760199,130.28,130.26,3.91276926]
[1765742501756,7.67540025,130.29,130.26,12.31276926]
[1765742501957,7.67540025,130.29,130.27,3.21276926]
[1765742502267,8.37540025,130.29,130.27,3.21276926]
[1765742502464,7.67540025,130.29,130.26,9.1]
[1765742502771,8.37540025,130.29,130.26,9.1]
[1765742503675,26.86108978,130.3,130.26,0.7]
[1765742503980,0.7,130.28,130.25,0.2]
[1765742504946,3.91276926,130.28,130.25,0.2]
[1765742505374,0.7,130.27,130.25,0.2]
[1765742505966,8.37694066,130.27,130.25,3.41276926]
[1765742506167,19.1893388,130.29,130.26,3.21276926]
[1765742506168,0.7,130.29,130.26,3.21276926]
[1765742506368,0.7,130.29,130.26,3.91276926]
[1765742507451,0.7,130.29,130.27,3.21276926]
[1765742507649,0.7,130.29,130.26,0.7]
[1765742507980,8.37531918,130.29,130.26,3.91276926]
[1765742508170,8.37531918,130.29,130.27,3.21276926]
[1765742508748,0.7,130.31,130.28,3.91276926]
[1765742508976,0.7,130.31,130.28,0.7]
[1765742509181,8.37412241,130.31,130.27,12.31276926]
[1765742509370,8.37412241,130.31,130.27,11.61276926]
[1765742509574,0.7,130.3,130.27,9.1]
[1765742509884,8.37482352,130.3,130.27,12.31276926]
[1765742510085,8.37482352,130.3,130.28,3.21276926]
[1765742511083,8.37482352,130.3,130.27,12.31276926]
[1765742511573,8.37482352,130.3,130.28,3.21276926]
[1765742511771,0.7,130.3,130.27,11.61276926]
[1765742511976,0.7,130.29,130.27,8.4]
[1765742512187,0.7,130.29,130.27,12.31276926]
[1765742512368,0.7,130.31,130.28,3.21276926]
[1765742512958,0.7,130.31,130.28,3.91276926]
[1765742513681,7.67459708,130.3,130.27,11.61276926]
[1765742513981,7.67459708,130.3,130.27,12.31276926]
[1765742514178,8.37459708,130.3,130.27,12.31276926]
[1765742514353,7.67459708,130.3,130.28,3.91656199]
[1765742514553,0.7,130.31,130.29,3.21656199]
[1765742514767,0.7,130.31,130.28,3.91656199]
[1765742515275,129.36365319,130.34,130.3,3.21656199]
[1765742515276,8.37296687,130.33,130.3,3.21656199]
[1765742515468,8.37296687,130.33,130.3,11.61656199]
[1765742515668,8.37296687,130.33,130.31,0.7]
[1765742515669,7.67296687,130.33,130.31,0.7]
[1765742515859,7.67246692,130.34,130.32,3.21656199]
[1765742516185,0.7,130.33,130.3,11.61656199]
[1765742516391,0.7,130.33,130.31,0.69]
[1765742516562,0.7,130.33,130.31,3.90656199]
[1765742516761,0.7,130.33,130.31,0.69]
[1765742516962,0.7,130.33,130.3,12.30656199]
[1765742517986,19.18060457,130.34,130.3,11.61656199]
[1765742518182,19.85060457,130.34,130.31,3.90656199]
[1765742519264,27.52284639,130.34,130.31,3.90656199]
[1765742519691,8.34224182,130.34,130.31,3.90656199]
[1765742521287,0.67,130.33,130.3,11.61656199]
[1765742521592,3.88656199,130.33,130.28,0.69]
[1765742521761,0.67,130.33,130.27,12.30656199]
[1765742521962,3.88656199,130.32,130.27,12.30656199]
[1765742522155,3.88656199,130.32,130.27,8.4]
[1765742522362,16.26365319,130.3,130.27,8.4]
[1765742522562,0.67,130.31,130.27,8.4]
[1765742522774,24.94797633,130.33,130.27,11.61656199]
[1765742522974,0.67,130.32,130.29,3.21656199]
[1765742523172,0.67,130.32,130.28,3.21656199]
[1765742523384,26.85902846,130.31,130.27,11.61656199]
[1765742523894,3.88656199,130.3,130.27,8.4]
[1765742524079,0.67,130.3,130.27,8.4]
[1765742524268,0.67,130.29,130.27,8.4]
[1765742525497,7.67577525,130.28,130.27,8.4]
[1765742525875,8.34577525,130.28,130.27,8.4]
[1765742526683,38.54127461,130.43,130.27,8.4]
[1765742526684,38.35040121,130.38,130.28,8.80994492]
[1765742526880,0.67,130.38,130.34,3.21656199]
[1765742527201,0.67,130.37,130.34,3.21656199]
[1765742527403,7.67106474,130.36,130.33,0.69]
[1765742527709,7.67106474,130.36,130.34,3.21656199]
[1765742528111,7.67106474,130.36,130.33,3.90656199]
[1765742528409,8.34106474,130.36,130.33,0.69]
[1765742528572,27.51872659,130.36,130.32,12.30656199]
[1765742528979,0.67,130.35,130.32,8.4]
[1765742529319,0.67,130.35,130.32,9.09]
[1765742530006,7.67224182,130.34,130.32,9.09]
[1765742530970,7.67224182,130.34,130.32,8.4]
[1765742531421,7.67224182,130.34,130.32,12.30656199]
[1765742533011,27.51872659,130.36,130.32,12.30656199]
[1765742533216,0.67,130.35,130.32,12.30656199]
[1765742534111,47.70883899,130.48,130.34,3.21656199]
[1765742534112,0.67,130.39,130.34,3.21656199]
[1765742534287,0.67,130.41,130.37,3.21656199]
[1765742534486,0.67,130.41,130.38,3.21656199]
[1765742534706,0.67,130.41,130.37,3.90656199]
[1765742535092,7.66871165,130.4,130.37,3.90656199]
[1765742535292,8.33871165,130.4,130.37,3.90656199]
[1765742537000,8.33871165,130.4,130.37,0.69]
[1765742537308,7.66871165,130.4,130.39,3.21656199]
[1765742537511,7.66871165,130.4,130.38,0.69]
[1765742537726,7.66871165,130.4,130.38,3.21656199]
[1765742538598,8.33871165,130.4,130.37,3.90656199]
[1765742538798,7.66871165,130.4,130.37,3.90656199]
[1765742538987,8.33871165,130.4,130.37,3.90656199]
[1765742539408,8.33871165,130.4,130.37,2.74535898]
[1765742541101,7.66871165,130.4,130.36,2.05535898]
[1765742541303,7.66871165,130.4,130.36,2.74535898]
[1765742541304,0.67,130.39,130.36,2.74535898]
[1765742542600,8.33931653,130.39,130.37,2.05535898]
[1765742542804,0.67,130.39,130.37,2.05535898]
[1765742543004,8.33892273,130.4,130.37,2.74535898]
[1765742544105,26.83930942,130.41,130.38,0.69]
[1765742544310,27.50930942,130.41,130.38,0.69]
[1765742545314,27.50930942,130.41,130.38,2.74535898]
[1765742546224,8.33812361,130.41,130.38,2.74535898]
[1765742549716,8.33812361,130.41,130.38,0.69]
[1765742550457,8.33812361,130.41,130.35,27.57849832]
[1765742550458,0.71,130.4,130.35,8.4]
[1765742550739,2.05627049,130.38,130.35,8.4]
[1765742551111,0.68,130.37,130.35,8.4]
[1765742551539,0.68,130.37,130.33,2.05627049]
[1765742551745,0.68,130.37,130.33,2.77627049]
[1765742552427,7.67106474,130.36,130.34,2.05627049]
[1765742552625,7.67106474,130.36,130.34,2.77627049]
[1765742552951,7.67106474,130.36,130.34,2.05627049]
[1765742553152,7.67106474,130.36,130.34,2.77627049]
[1765742553334,7.67106474,130.36,130.34,0.72]
[1765742553536,7.67047633,130.37,130.34,2.77627049]
[1765742553861,8.35047633,130.37,130.34,2.77627049]
[1765742556265,7.67047633,130.37,130.35,2.05627049]
[1765742556563,7.67047633,130.37,130.35,2.77627049]
[1765742556775,7.67015284,130.38,130.35,2.77627049]
[1765742556971,8.35015284,130.38,130.35,2.77627049]
[1765742559343,0.68,130.38,130.35,0.72]
[1765742559540,0.68,130.38,130.36,2.05627049]
[1765742560243,7.67047633,130.37,130.36,2.05627049]
[1765742560648,8.35006228,130.38,130.36,2.05627049]
[1765742561770,26.84254927,130.39,130.37,0.72]
[1765742561968,27.52254927,130.39,130.36,2.77627049]
[1765742563577,26.84254927,130.39,130.36,2.05627049]
[1765742563892,7.66929979,130.39,130.37,2.77627049]
[1765742564240,8.34929979,130.39,130.37,2.05627049]
[1765742566171,7.66929979,130.39,130.37,2.77627049]
[1765742566968,7.66929979,130.39,130.37,0.72]
[1765742568267,7.66929979,130.39,130.38,2.05627049]
[1765742568778,112.36893508,130.4,130.38,2.77627049]
[1765742568945,112.36893508,130.4,130.39,0.72]
[1765742569140,104.7,130.4,130.39,2.77627049]
[1765742569371,7.66827968,130.41,130.39,2.77627049]
[1765742569571,8.34827968,130.41,130.39,2.05627049]
[1765742569779,8.34827968,130.41,130.38,2.77627049]
[1765742570860,7.66827968,130.41,130.39,0.72]
[1765742571381,7.66827968,130.41,130.39,2.77627049]
[1765742573174,7.66827968,130.41,130.39,0.72]
[1765742573374,8.34827968,130.41,130.39,2.05627049]
[1765742573676,7.66827968,130.41,130.39,2.77627049]
[1765742576183,7.66827968,130.41,130.39,0.72]
[1765742576491,7.66827968,130.41,130.39,2.77627049]
[1765742578665,7.66827968,130.41,130.39,0.72]
[1765742578869,0.67,130.4,130.38,2.05627049]
[1765742579184,0.67,130.4,130.38,2.77627049]
[1765742579553,0.67,130.4,130.37,2.05627049]
[1765742579963,0.67,130.4,130.36,11.17627049]
[1765742580187,0.67,130.4,130.36,8.4]
[1765742580371,7.66929979,130.39,130.36,8.4]
[1765742580574,26.84254927,130.39,130.36,8.4]
[1765742580871,0.67,130.38,130.36,8.4]
[1765742581804,7.66929979,130.39,130.37,2.77627049]
[1765742585808,7.66929979,130.39,130.37,0.72]
[1765742586782,26.83901744,130.41,130.37,0.72]
[1765742586981,0.67,130.39,130.37,0.72]
[1765742589310,8.33940192,130.39,130.37,0.72]
[1765742591512,8.33940192,130.39,130.36,11.17560703]
[1765742592213,8.33940192,130.39,130.37,0.72]
[1765742597318,7.66940192,130.39,130.37,0.72]
[1765742597819,8.33940192,130.39,130.37,0.72]
[1765742600815,8.33940192,130.39,130.36,11.61184413]
[1765742601004,8.33940192,130.39,130.36,12.33184413]
[1765742601519,8.33940192,130.39,130.37,0.72]
[1765742602013,8.33944445,130.39,130.37,0.72]
[1765742602220,7.66944445,130.39,130.37,3.93184413]
[1765742602403,7.66944445,130.39,130.38,3.93184413]
[1765742603128,7.66871165,130.4,130.38,3.93184413]
[1765742604107,7.66871165,130.4,130.38,0.72]
[1765742606533,8.33829265,130.41,130.38,11.60172282]
[1765742606715,8.33829265,130.41,130.39,11.61184413]
[1765742606716,7.66829265,130.41,130.39,11.61184413]
[1765742606891,7.66829265,130.41,130.4,0.67]
[1765742607095,7.66829265,130.41,130.39,11.61184413]
[1765742607334,7.66829265,130.41,130.39,12.28184413]
[1765742607848,8.35773101,130.42,130.39,12.28184413]
[1765742608399,7.66773101,130.42,130.39,19.28112689]
[1765742608602,124.55522106,130.45,130.41,3.21184413]
[1765742608816,7.66636001,130.44,130.41,3.21184413]
[1765742609032,7.66636001,130.44,130.42,0.67]
[1765742610047,0.7,130.48,130.43,3.21184413]
[1765742610195,0.7,130.48,130.45,3.21184413]
[1765742610399,0.7,130.48,130.45,11.61184413]
[1765742610602,0.7,130.48,130.45,12.29184413]
[1765742611409,8.36417343,130.48,130.45,11.61184413]
[1765742611605,8.36417343,130.48,130.45,12.29184413]
[1765742611835,0.7,130.47,130.45,12.29184413]
[1765742612532,0.7,130.48,130.45,12.29184413]
[1765742612730,0.7,130.47,130.45,8.4]
[1765742614031,8.36510303,130.47,130.45,8.4]
[1765742614739,0.7,130.46,130.43,8.4]
[1765742615736,7.66577232,130.45,130.43,8.4]
[1765742616037,7.66577232,130.45,130.43,9.08]
[1765742616413,8.36577232,130.45,130.43,9.08]